fUST/lending_fUST_20251218
["ID","MTS","AMOUNT","RATE_DAILY","PERIOD"]
[398970319,1766032263943,-500.0,0.00055616,120]
[398970320,1766032263953,-500.0,0.00055616,120]
[398970321,1766032263963,-500.0,0.00055616,120]
[398970322,1766032263972,-500.0,0.00055616,120]
[398970323,1766032263981,-500.0,0.00055616,120]
[398970324,1766032263991,-500.0,0.00055616,120]
[398970325,1766032264000,-500.0,0.00055616,120]
[398970326,1766032264010,-500.0,0.00055616,120]
[398970327,1766032264019,-500.0,0.00055616,120]
[398970328,1766032264029,-500.0,0.00055616,120]
[398970329,1766032264038,-495.0,0.00055616,120]
[398970330,1766032264047,-207.09,0.00055616,120]
[398970331,1766032264057,-500.0,0.00055616,120]
[398970332,1766032264067,-500.0,0.00055616,120]
[398970333,1766032264079,-500.0,0.00055616,120]
[398970334,1766032264090,-1300.76,0.00055616,120]
[398970335,1766032264101,-500.0,0.00055616,120]
[398970336,1766032264113,-732.16,0.00055616,120]
[398970337,1766032264125,-500.0,0.00055616,120]
[398970338,1766032264135,-500.0,0.00055616,120]
[398970339,1766032264144,-532.84,0.00055616,120]
[398970340,1766032264153,-500.0,0.00055616,120]
[398970341,1766032264164,-635.98,0.00055616,120]
[398970342,1766032264173,-500.0,0.00055616,120]
[398970343,1766032264183,-500.0,0.00055616,120]
[398970344,1766032264192,-500.0,0.00055616,120]
[398970345,1766032264201,-500.0,0.00055616,120]
[398970346,1766032264211,-526.51,0.00055616,120]
[398970347,1766032264220,-554.41,0.00055616,120]
[398970348,1766032264229,-2665.94,0.00055616,120]
[398970349,1766032264239,-1040.04,0.00055616,120]
[398970350,1766032264248,-6046.63,0.00055616,120]
[398970351,1766032264258,-500.0,0.00055616,120]
[398970352,1766032264268,-500.0,0.00055616,120]
[398970353,1766032264278,-528.86,0.00055616,120]
[398970354,1766032264288,-500.0,0.00055616,120]
[398970355,1766032264299,-500.0,0.00055616,120]
[398970356,1766032264309,-500.0,0.00055616,120]
[398970357,1766032264319,-500.0,0.00055616,120]
[398970358,1766032264329,-500.0,0.00055616,120]
[398970359,1766032264339,-500.0,0.00055616,120]
[398970360,1766032264348,-947.44,0.00055616,120]
[398970361,1766032264358,-500.0,0.00055616,120]
[398970362,1766032264368,-500.0,0.00055616,120]
[398970363,1766032264379,-3310.78,0.00055616,120]
[398970364,1766032264390,-500.0,0.00055616,120]
[398970365,1766032264400,-715.73,0.00055616,120]
[398970366,1766032264410,-500.0,0.00055616,120]
[398970367,1766032264420,-435.55,0.00055616,120]
[398970368,1766032264430,-500.0,0.00055616,120]
[398970369,1766032264440,-500.0,0.00055616,120]
[398970370,1766032264454,-500.0,0.00055616,120]
[398970371,1766032264465,-500.0,0.00055616,120]
[398970372,1766032264475,-242.97,0.00055616,120]
[398970373,1766032264487,-500.0,0.00055616,120]
[398970374,1766032264498,-500.0,0.00055616,120]
[398970375,1766032264508,-360.18,0.00055616,120]
[398970376,1766032264519,-1146.4,0.00055616,120]
[398970377,1766032264528,-500.0,0.00055616,120]
[398970378,1766032264538,-500.0,0.00055616,120]
[398970379,1766032264548,-500.0,0.00055616,120]
[398970380,1766032264557,-332.28965294,0.00055616,120]
[398970381,1766032264761,-3e-08,0.00055616,120]
[398970382,1766032264814,-207.15034703,0.00055616,120]
[398970383,1766032264826,-437.32635176,0.00055616,120]
[398970384,1766032264837,-532.67,0.00055616,120]
[398970385,1766032264847,-500.0,0.00055616,120]
[398970386,1766032264859,-949.31,0.00055616,120]
[398970387,1766032264868,-500.0,0.00055616,120]
[398970388,1766032264877,-500.0,0.00055616,120]
[398970389,1766032264887,-237.78629954,0.00055616,120]
[398970390,1766032265017,-169.31481386,0.00043749,2]
[398970391,1766032265027,-154.2,0.00054794,120]
[398970392,1766032265037,-262.21370046,0.00055616,120]
[398970393,1766032265046,-4.40312194,0.00055616,120]
[398970394,1766032312713,150.0,7.079e-05,2]
[398970395,1766032313150,150.0,7.416e-05,2]
[398970396,1766032313542,150.0,7.753e-05,2]
[398970403,1766032817222,-163.386481,0.00013699,2]
[398970404,1766032817244,-568.94371529,0.00013699,2]
[398970406,1766033216115,-226.04392202,0.00013699,2]
[398970407,1766033216135,-67.13197596,0.00013699,2]
[398970421,1766033431918,-150.0,0.00013699,2]
[398970422,1766033431928,-615.0,0.00013699,2]
[398970423,1766033431938,-250.46855981,0.00015699,2]
[398970424,1766033431948,-217.56166012,0.00024164,12]
[398970425,1766033431957,-163.386481,0.0002911,2]
[398970426,1766033431966,-124.68290374,0.00030837,2]
[398970465,1766033437997,-255.31709626,0.00030837,2]
[398970466,1766033438006,-186.26615015,0.00037484,2]
[398970467,1766033438015,-223.999,0.00037496,48]
[398970468,1766033438025,-581.0,0.00037499,3]
[398970469,1766033438034,-500.0,0.00037583,15]
[398970470,1766033438043,-500.0,0.00037583,15]
[398970471,1766033438052,-306.43826871,0.00037583,15]
[398970473,1766033438061,-500.0,0.00037583,15]
[398970475,1766033438070,-500.0,0.00037583,15]
[398970476,1766033438079,-500.0,0.00037583,15]
[398970478,1766033438087,-285.98996892,0.00037583,15]
[398970480,1766033438100,-214.01003108,0.00037583,15]
[398970482,1766033438109,-500.0,0.00037583,15]
[398970483,1766033438118,-500.0,0.00037583,15]
[398970484,1766033438127,-500.0,0.00037583,15]
[398970485,1766033438136,-500.0,0.00037583,15]
[398970486,1766033438145,-500.0,0.00037583,15]
[398970487,1766033438154,-500.0,0.00037583,15]
[398970488,1766033438162,-331.71027025,0.00037583,15]
[398970489,1766033438172,-500.0,0.00037583,15]
[398970490,1766033438181,-500.0,0.00037583,15]
[398970491,1766033438191,-395.88858297,0.00037583,15]
[398970492,1766033438201,-500.0,0.00037583,15]
[398970493,1766033438211,-500.0,0.00037583,15]
[398970494,1766033438221,-500.0,0.00037583,15]
[398970495,1766033438231,-500.0,0.00037583,15]
[398970496,1766033438240,-500.0,0.00037583,15]
[398970497,1766033438249,-500.0,0.00037583,15]
[398970498,1766033438259,-500.0,0.00037583,15]
[398970499,1766033438270,-500.0,0.00037583,15]
[398970500,1766033438280,-500.0,0.00037583,15]
[398970501,1766033438289,-500.0,0.00037583,15]
[398970502,1766033438298,-500.0,0.00037583,15]
[398970503,1766033438308,-500.0,0.00037583,15]
[398970504,1766033438317,-500.0,0.00037583,15]
[398970505,1766033438326,-500.0,0.00037583,15]
[398970506,1766033438335,-437.85610173,0.00037583,15]
[398970514,1766033443086,-62.14389827,0.00037583,15]
[398970515,1766033443099,-646.51841579,0.00037583,15]
[398970516,1766033443109,-500.0,0.00037583,15]
[398970517,1766033443118,-500.0,0.00037583,15]
[398970518,1766033443128,-500.0,0.00037583,15]
[398970519,1766033443137,-500.0,0.00037583,15]
[398970521,1766033443147,-500.0,0.00037583,15]
[398970523,1766033443156,-500.0,0.00037583,15]
[398970525,1766033443165,-449.68186638,0.00037583,15]
[398970528,1766033446164,-50.31813362,0.00037583,15]
[398970529,1766033446174,-500.0,0.00037583,15]
[398970530,1766033446183,-500.0,0.00037583,15]
[398970531,1766033446192,-368.34159988,0.00037583,15]
[398970548,1766034632088,-634.22173424,0.00025204,2]
[398970549,1766034632100,-1200.0,0.00035443,3]
[398970550,1766034632109,-1303.1997234,0.00035445,2]
[398970551,1766034632120,-300.0,0.00035539,2]
[398970552,1766034632130,-300.0,0.00035539,3]
[398970553,1766034632139,-1200.0,0.00035541,3]
[398970554,1766034632148,-267.9963701,0.00035645,2]
[398970555,1766034632158,-308.0,0.00037,15]
[398970556,1766034632168,-501.0,0.00037513,30]
[398970557,1766034632177,-2000.0,0.00037582,15]
[398970558,1766034632186,-2000.0,0.00037789,10]
[398970559,1766034632195,-179.2,0.00037789,49]
[398970560,1766034632205,-916.35531913,0.00037797,10]
[398970561,1766034638222,-500.0,0.00037785,15]
[398970562,1766034638232,-500.0,0.00037785,15]
[398970563,1766034638242,-500.0,0.00037785,15]
[398970564,1766034638251,-500.0,0.00037785,15]
[398970565,1766034638261,-500.0,0.00037785,15]
[398970566,1766034638271,-500.0,0.00037785,15]
[398970567,1766034638280,-500.0,0.00037785,15]
[398970568,1766034638290,-500.0,0.00037785,15]
[398970569,1766034638299,-500.0,0.00037785,15]
[398970570,1766034638308,-500.0,0.00037785,15]
[398970571,1766034638318,-500.0,0.00037785,15]
[398970572,1766034638328,-378.74737117,0.00037785,15]
[398970573,1766034638337,-500.0,0.00037785,15]
[398970574,1766034638346,-500.0,0.00037785,15]
[398970575,1766034638356,-650.4122539,0.00037785,15]
[398970576,1766034638365,-500.0,0.00037785,15]
[398970577,1766034638375,-241.77493017,0.00037785,15]
[398970578,1766034638384,-500.0,0.00037785,15]
[398970579,1766034638394,-350.12330266,0.00037785,15]
[398970580,1766034638405,-149.87669734,0.00037785,15]
[398970581,1766034638415,-500.0,0.00037785,15]
[398970582,1766034638424,-500.0,0.00037785,15]
[398970583,1766034638433,-500.0,0.00037785,15]
[398970584,1766034638442,-218.98647774,0.00037785,15]
[398970585,1766034638452,-500.0,0.00037785,15]
[398970586,1766034638461,-500.0,0.00037785,15]
[398970587,1766034638474,-500.0,0.00037785,15]
[398970588,1766034638483,-500.0,0.00037785,15]
[398970589,1766034638492,-500.0,0.00037785,15]
[398970590,1766034638501,-500.0,0.00037785,15]
[398970591,1766034638511,-500.0,0.00037785,15]
[398970592,1766034638520,-500.0,0.00037785,15]
[398970593,1766034638530,-500.0,0.00037785,15]
[398970594,1766034638539,-500.0,0.00037785,15]
[398970595,1766034638548,-500.0,0.00037785,15]
[398970596,1766034638558,-500.0,0.00037785,15]
[398970597,1766034638568,-500.0,0.00037785,15]
[398970598,1766034638578,-1083.64468087,0.00037797,10]
[398970599,1766034638588,-2000.0,0.00037806,10]
[398970600,1766034638597,-2000.0,0.00037815,10]
[398970601,1766034638606,-2000.0,0.00037824,10]
[398970602,1766034638616,-2000.0,0.00037833,10]
[398970603,1766034638627,-2000.0,0.00037841,10]
[398970604,1766034638814,-2000.0,0.0003785,10]
[398970605,1766034638825,-1508.19424786,0.00037859,10]
[398970606,1766034638837,-491.80575214,0.00037859,10]
[398970607,1766034638846,-2000.0,0.00037868,10]
[398970608,1766034638857,-2000.0,0.00037877,10]
[398970609,1766034638867,-2000.0,0.00037885,10]
[398970610,1766034638877,-2000.0,0.00037894,10]
[398970611,1766034638887,-2000.0,0.00037903,10]
[398970612,1766034638897,-2000.0,0.00037912,10]
[398970613,1766034638907,-2000.0,0.00037921,10]
[398970614,1766034638918,-2000.0,0.00037929,10]
[398970615,1766034638928,-1769.42913315,0.00038199,10]
[398970616,1766034638937,-600.0,0.0003854,60]
[398970617,1766034638946,-150.0,0.00039322,2]
[398970618,1766034638956,-720.0,0.00042394,60]
[398970619,1766034638965,-203.0,0.00043726,120]
[398970620,1766034638975,-163.386481,0.00044521,2]
[398970621,1766034638985,-154.94062154,0.00045077,30]
[398970622,1766034638994,-417.625,0.00045926,2]
[398970623,1766034639004,-345.21693546,0.00046634,120]
[398970624,1766034639017,-518.78306454,0.00046634,120]
[398970625,1766034639027,-500.0,0.00047363,7]
[398970626,1766034639040,-631.86079248,0.00047363,120]
[398970627,1766034639050,-500.0,0.00047363,120]
[398970628,1766034639059,-430.22964737,0.00047363,120]
[398970663,1766034640282,-69.77035263,0.00047363,120]
[398970664,1766034640292,-500.0,0.00047363,120]
[398970665,1766034640302,-45.07884737,0.00047363,120]
[398970666,1766034640313,-454.92115263,0.00047363,120]
[398970667,1766034640322,-500.0,0.00047363,120]
[398970668,1766034640331,-500.0,0.00047363,120]
[398970669,1766034640340,-167.83437881,0.00047363,120]
[398970670,1766034640349,-500.0,0.00047363,7]
[398970671,1766034640359,-500.0,0.00047363,7]
[398970672,1766034640367,-500.0,0.00047363,120]
[398970673,1766034640377,-642.19339574,0.00047363,7]
[398970674,1766034640385,-500.0,0.00047363,120]
[398970675,1766034640395,-500.0,0.00047363,120]
[398970676,1766034640405,-500.0,0.00047363,120]
[398970677,1766034640414,-500.0,0.00047363,120]
[398970678,1766034640424,-500.0,0.00047363,120]
[398970679,1766034640433,-250.0,0.00047363,120]
[398970680,1766034640442,-508.73857112,0.00047364,15]
[398970681,1766034640454,-1086.86268639,0.00047364,15]
[398970698,1766034643304,-768.90923381,0.00047364,15]
[398970699,1766034643316,-2156.0,0.00047364,15]
[398970705,1766034646269,-2880.99999997,0.00047364,15]
[398970706,1766034646323,-391.50697925,0.00047364,15]
[398970708,1766035226144,150.0,7.125e-05,2]
[398970709,1766035226567,150.0,7.464e-05,2]
[398970710,1766035291457,150.0,7.013e-05,2]
[398970711,1766035291884,150.0,7.346e-05,2]
[398970712,1766035292299,150.0,7.68e-05,2]
[398970713,1766035292707,150.0,8.014e-05,2]
[398970714,1766035648190,30478.95832634,0.000117,120]
[398970735,1766035832268,-1644.21392841,0.00026,30]
[398970737,1766035832277,-300.0,0.00029998,2]
[398970739,1766035832287,-408.0,0.00029998,2]
[398970741,1766035832296,-586.0,0.00029999,2]
[398970742,1766035832306,-500.0,0.00029999,2]
[398970743,1766035832315,-500.0,0.00029999,2]
[398970744,1766035832325,-500.0,0.00029999,2]
[398970745,1766035832334,-405.60136155,0.00029999,2]
[398970746,1766035832345,-334.45590873,0.00029999,2]
[398970747,1766035832354,-272.55575395,0.00029999,2]
[398970748,1766035832364,-637.97499224,0.00029999,2]
[398970749,1766035832373,-21650.057566,0.0003,2]
[398970750,1766035832388,-304.28204476,0.0003,2]
[398970767,1766035838274,-654.51591164,0.0003,2]
[398970768,1766035838284,-411.23881945,0.0003,10]
[398970769,1766035838293,-347.45287493,0.0003,30]
[398970770,1766035838303,-2070.86679079,0.0003,2]
[398970771,1766035838331,-5903.47015186,0.0003,2]
[398970772,1766035838343,-9921.65803373,0.0003,2]
[398970773,1766035838352,-269.19769494,0.0003,2]
[398970774,1766035838361,-600.0,0.00030599,30]
[398970775,1766035838371,-720.0,0.00033659,30]
[398970776,1766035838381,-500.0,0.00035,30]
[398970777,1766035838390,-864.0,0.00037025,30]
[398970778,1766035838399,-8761.84680928,0.0003933,120]
[398970779,1766035838410,-4404.5433117,0.0003933,120]
[398970780,1766035838421,-14792.26899724,0.0003933,120]
[398970890,1766035841734,-23790.55009161,0.0003933,120]
[398970892,1766035841746,-6855.87471478,0.0003933,120]
[398970894,1766035841759,-1525.57541363,0.0003933,120]
[398970897,1766035841770,-265.25354514,0.0003933,120]
[398970899,1766035841781,-1242.57155899,0.0003933,120]
[398970901,1766035841792,-594.4003059,0.0003933,120]
[398970903,1766035841803,-1595.8,0.0003933,120]
[398971082,1766035843446,-10342.34652909,0.0003933,120]
[398971089,1766035843504,-8544.43203038,0.0003933,120]
[398971092,1766035843516,-5190.6800031,0.0003933,120]
[398971272,1766035875901,150.0,0.00011575,2]
[398971273,1766035876395,150.0,0.00012126,2]
[398971274,1766036416686,-162.578385,0.00013699,2]
[398971275,1766036416711,-242.27981448,0.00013699,2]
[398971276,1766036808121,-293.17589798,0.00013699,2]
[398971298,1766037032436,-226.04392202,0.00013699,2]
[398971299,1766037032446,-615.0,0.00013699,2]
[398971300,1766037032456,-150.0,0.00013993,2]
[398971301,1766037032465,-263.92433098,0.00015993,2]
[398971302,1766037032475,-163.746208,0.00026559,30]
[398971303,1766037032485,-150.0,0.00027397,5]
[398971304,1766037032494,-250.0,0.00027945,5]
[398971305,1766037032504,-350.0,0.00028493,5]
[398971306,1766037032514,-450.0,0.00029041,5]
[398971307,1766037032524,-700.0,0.00029589,5]
[398971308,1766037032534,-159.0,0.000296,5]
[398971309,1766037032545,-159.0,0.000296,30]
[398971310,1766037032554,-715.72693632,0.000296,2]
[398971311,1766037032564,-159.0,0.000323,7]
[398971312,1766037032574,-365.02,0.000331,7]
[398971313,1766037032583,-159.0,0.000342,120]
[398971314,1766037032593,-887.0,0.00034246,3]
[398971315,1766037032603,-162.578385,0.00034247,2]
[398971316,1766037032613,-159.0,0.00035,120]
[398971317,1766037032623,-159.0,0.00035,60]
[398971318,1766037032633,-301.0,0.00035,3]
[398971319,1766037032642,-168.0,0.00035,3]
[398971320,1766037032652,-159.0,0.000351,30]
[398971321,1766037032662,-179.2,0.000351,41]
[398971322,1766037032672,-300.0,0.000351,2]
[398971323,1766037032682,-600.0,0.000357,30]
[398971324,1766037032692,-162.0,0.000375,120]
[398971325,1766037032701,-162.0,0.000375,90]
[398971326,1766037032711,-720.0,0.0003927,60]
[398971327,1766037032721,-151.0,0.00039329,120]
[398971328,1766037032732,-10868.2754954,0.00039329,120]
[398971329,1766037032745,-683.94573684,0.00039329,120]
[398971333,1766037038533,-184.19450304,0.00039329,120]
[398971334,1766037038542,-4450.07674383,0.00039329,120]
[398971335,1766037038554,-450.0,0.00039329,120]
[398971363,1766037044898,-7128.42382269,0.00039329,120]
[398971369,1766037046635,-200.0,0.00014873,29]
[398971370,1766037046650,-4009.49955301,0.00039329,120]
[398971372,1766038019130,-435.31282379,0.00019221,2]
[398971373,1766038111481,150.0,0.00011045,2]
[398971374,1766038111901,150.0,0.00012049,2]
[398971382,1766038232668,-560.25894826,0.00019029,2]
[398971414,1766038240763,-4439.74105174,0.00019029,2]
[398971415,1766038240776,-707.0,0.00019221,2]
[398971417,1766038240786,-150.0,0.00027397,5]
[398971419,1766038240795,-400.0,0.00027945,5]
[398971420,1766038240804,-5000.0,0.00037124,2]
[398971422,1766038240812,-300.0,0.00037499,2]
[398971423,1766038240823,-400.0,0.00039,120]
[398971425,1766038240834,-2148.42409355,0.0003923,2]
[398971427,1766038240842,-169.31481386,0.0003923,2]
[398971428,1766038240985,-151.0,0.000393,11]
[398971429,1766038240997,-151.0,0.000393,18]
[398971430,1766038241006,-500.0,0.00039329,7]
[398971431,1766038241015,-442.30255474,0.00039329,15]
[398971432,1766038241026,-500.0,0.00039329,15]
[398971433,1766038241037,-500.0,0.00039329,15]
[398971434,1766038241046,-499.53537702,0.00039329,7]
[398971435,1766038241055,-500.0,0.00039329,15]
[398971436,1766038241064,-500.0,0.00039329,15]
[398971437,1766038241074,-500.0,0.00039329,15]
[398971438,1766038241083,-500.0,0.00039329,7]
[398971439,1766038241093,-500.0,0.00039329,15]
[398971440,1766038241103,-500.0,0.00039329,15]
[398971441,1766038241114,-500.0,0.00039329,15]
[398971442,1766038241124,-500.0,0.00039329,15]
[398971443,1766038241136,-242.48406517,0.00039329,15]
[398971444,1766038241145,-500.0,0.00039329,15]
[398971445,1766038241154,-250.0,0.00039329,15]
[398971446,1766038241164,-179.2,0.00039329,54]
[398971447,1766038241172,-36503.63533739,0.0003933,120]
[398971448,1766038241184,-18005.16442551,0.0003933,30]
[398971449,1766038241194,-49059.0,0.0003933,120]
[398971450,1766038241203,-49467.26024011,0.0003933,30]
[398971452,1766038243742,-788.01329153,0.0003933,30]
[398971463,1766038351256,170.51,0.0001,2]
[398971464,1766038353623,170.51,0.000102,2]
[398971465,1766038382654,150.0,7.281e-05,2]
[398971466,1766038383073,150.0,7.942e-05,2]
[398971467,1766038383503,150.0,8.604e-05,2]
[398971468,1766038383907,150.0,9.266e-05,2]
[398971469,1766038384309,150.0,9.928e-05,2]
[398971470,1766038384747,167.8,0.0001059,2]
[398971471,1766038385151,195.77,0.00011252,2]
[398971472,1766038385560,223.74,0.00011914,2]
[398971473,1766038385986,251.7,0.00012576,2]
[398971474,1766038444931,5000.0,0.00013,2]
[398971475,1766038453796,150.0,7.511e-05,2]
[398971476,1766038454218,150.0,8.194e-05,2]
[398971477,1766038454676,150.0,8.877e-05,2]
[398971478,1766038455480,150.0,9.56e-05,2]
[398971483,1766039087236,-602.51203883,0.00013426,2]
[398971484,1766039088820,-568.94371529,0.00013426,2]
[398971485,1766039090868,-500.0,0.00013426,2]
[398971486,1766039092303,-208.96458864,0.00013426,2]
[398971487,1766039094467,-163.386481,0.00013426,2]
[398971488,1766039128534,-157.729808,0.00013426,2]
[398971490,1766039277532,-300.03165314,0.00013159,2]
[398971492,1766039314069,11465.0640222,0.0001,2]
[398971493,1766039314094,3572.88298801,0.0001,2]
[398971494,1766039314607,2913.62615751,0.0001,2]
[398971505,1766039431728,-424.46631275,0.00013159,2]
[398971506,1766039431788,-4275.50203411,0.00013159,2]
[398971507,1766039431797,-607.0,0.00013159,2]
[398971508,1766039431806,-300.02857218,0.00013273,2]
[398971509,1766039431815,-1085.0,0.00013291,2]
[398971510,1766039431824,-5000.0,0.00013292,2]
[398971511,1766039431834,-300.0,0.00013696,2]
[398971512,1766039431843,-300.0,0.00013696,2]
[398971513,1766039431852,-300.0,0.00013696,2]
[398971514,1766039431861,-300.0,0.00013696,2]
[398971515,1766039431871,-162.578385,0.00013699,2]
[398971516,1766039431880,-208.96458864,0.00013699,2]
[398971517,1766039431889,-404.84913931,0.00015,2]
[398971518,1766039431899,-420.0,0.00015009,2]
[398971519,1766039431908,-150.0,0.00027397,5]
[398971520,1766039431918,-250.0,0.00027945,5]
[398971521,1766039431927,-350.0,0.00028493,5]
[398971522,1766039431936,-450.0,0.00029041,5]
[398971523,1766039431945,-151.51790625,0.0003,2]
[398971524,1766039431954,-185.981,0.000332,35]
[398971525,1766039431963,-197.29774873,0.000332,117]
[398971526,1766039431973,-199.64712353,0.00035,3]
[398971527,1766039431984,-155.34506734,0.00035,3]
[398971528,1766039431995,-19832.0,0.000365,120]
[398971529,1766039432004,-1879.87108183,0.00037953,2]
[398971530,1766039432013,-160.47285889,0.00038053,2]
[398971531,1766039432023,-600.0,0.00038249,30]
[398971532,1766039432033,-2454.59059438,0.00038344,2]
[398971533,1766039432043,-2454.59059438,0.00038444,2]
[398971534,1766039432052,-375.59002783,0.00038727,2]
[398971535,1766039432066,-393.43201551,0.00038727,2]
[398971542,1766039437698,-498.8032675,0.00038727,2]
[398971543,1766039437709,-1069.1624148,0.00038727,2]
[398971544,1766039437757,-117.60286874,0.00038727,2]
[398971545,1766039437766,-2454.59059438,0.0003905,2]
[398971546,1766039437775,-150.0,0.00039061,15]
[398971547,1766039437783,-606.07162502,0.00039074,2]
[398971548,1766039437793,-589.47905016,0.00039074,2]
[398971549,1766039437802,-151.0,0.000392,18]
[398971550,1766039437811,-212.51466313,0.00039229,15]
[398971551,1766039437822,-207.77632858,0.00039229,15]
[398971552,1766039437831,-500.0,0.00039229,15]
[398971553,1766039437839,-500.0,0.00039229,7]
[398971554,1766039437848,-594.73884562,0.00039229,15]
[398971555,1766039437857,-549.67476391,0.00039229,7]
[398971556,1766039437866,-500.0,0.00039229,15]
[398971557,1766039437875,-500.0,0.00039229,15]
[398971558,1766039437885,-500.0,0.00039229,15]
[398971559,1766039437894,-500.0,0.00039229,15]
[398971560,1766039437903,-500.0,0.00039229,15]
[398971561,1766039437912,-151.0,0.0003923,120]
[398971562,1766039437921,-601.51420756,0.00039236,2]
[398971563,1766039437930,-151.0,0.00039329,120]
[398971564,1766039437939,-157.0,0.0003933,14]
[398971565,1766039437948,-157.0,0.0003933,14]
[398971566,1766039437957,-157.0,0.0003933,14]
[398971567,1766039437966,-157.0,0.0003933,14]
[398971568,1766039437975,-157.0,0.0003933,14]
[398971569,1766039437986,-157.0,0.0003933,14]
[398971570,1766039437996,-157.0,0.0003933,14]
[398971571,1766039438005,-157.0,0.0003933,14]
[398971572,1766039438015,-157.0,0.0003933,14]
[398971573,1766039438023,-164.455961,0.0003933,14]
[398971574,1766039438035,-151.0,0.0003933,120]
[398971575,1766039438044,-500.0,0.0003933,14]
[398971576,1766039438053,-49744.72646836,0.00039336,30]
[398971577,1766039438063,-14655.0,0.00039336,30]
[398971578,1766039438073,-1585.26128022,0.00039336,120]
[398971579,1766039438083,-7478.97164143,0.00039336,120]
[398971580,1766039438092,-151.0,0.00039336,120]
[398971581,1766039438101,-151.0,0.0004,19]
[398971582,1766039438110,-151.0,0.000401,12]
[398971583,1766039438120,-151.0,0.000401,18]
[398971584,1766039438129,-150.0,0.00040431,15]
[398971585,1766039438138,-151.0,0.000408,20]
[398971586,1766039438148,-151.0,0.000409,11]
[398971587,1766039438157,-151.0,0.000409,17]
[398971588,1766039438166,-601.51420756,0.00041152,2]
[398971589,1766039438175,-9321.6679514,0.00041543,2]
[398971594,1766039440009,-3e-08,0.00041543,2]
[398971607,1766039446071,-294.2036942,0.00039335,15]
[398971608,1766039446082,-500.0,0.00039335,15]
[398971609,1766039446092,-461.02753643,0.00039335,7]
[398971610,1766039446105,-38.97246357,0.00039335,7]
[398971611,1766039446114,-234.77233474,0.00039335,7]
[398971612,1766039446123,-500.0,0.00039335,15]
[398971613,1766039446133,-516.31719193,0.00039335,15]
[398971614,1766039446142,-500.0,0.00039335,15]
[398971615,1766039446151,-13.95534148,0.00039335,15]
[398971616,1766039550895,166.59,0.0001,2]
[398971617,1766039556730,150.0,0.00011407,2]
[398971618,1766039648591,-5000.0,0.00013426,2]
[398971619,1766039648738,-5000.0,0.00013562,2]
[398971620,1766039648766,-300.0,0.00013698,2]
[398971621,1766039648793,-500.0,0.00013699,2]
[398971622,1766039705954,500.0,0.00013699,2]
[398971623,1766039705986,1001.87164237,0.00014247,2]
[398971624,1766039716472,503.92424406,0.00013273,2]
[398971625,1766039824570,502.62859689,0.00013699,2]
[398971626,1766039831936,501.45591669,0.00013699,2]
[398971627,1766039836495,500.0,0.00013273,2]
[398971628,1766039837105,500.0,0.00013273,2]
[398971629,1766039837163,502.40182974,0.00013821,2]
[398971630,1766039839464,465.13459794,0.00013699,2]
[398971631,1766039842654,500.0,0.00013273,2]
[398971632,1766039842708,1000.0,0.00013821,2]
[398971633,1766039842798,510.83636242,0.00014368,2]
[398971634,1766039893944,159.1858316,0.00013699,2]